bitfinex/quotes_SOLUSD_20250123
["timestamp","ask_amount","ask_price","bid_price","bid_amount"]
[1737631343088,19.28853304,244.51,244.41,20.0]
[1737631343289,19.28863304,244.6,244.48,19.28853304]
[1737631343511,0.0001,244.6,244.54,19.28853304]
[1737631343699,0.0001,244.6,244.56,19.28853304]
[1737631344095,0.0001,244.6,244.59,19.28853304]
[1737631344317,0.0001,244.6,244.55,19.28853304]
[1737631344525,0.0001,244.6,244.59,20.81293304]
[1737631344701,0.03,244.68,244.65,20.0]
[1737631345017,0.03,244.68,244.66,19.28853304]
[1737631345320,0.03,244.68,244.66,23.37583304]
[1737631345824,1.0,244.83,244.66,23.37583304]
[1737631345825,19.28853304,244.96,244.76,20.0]
[1737631346118,19.28853304,244.98,244.84,19.28853304]
[1737631346416,25.32893304,245.0,244.84,19.28853304]
[1737631346801,19.28853304,245.02,244.84,43.06541704]
[1737631346999,6.3000713,245.03,244.84,43.06541704]
[1737631347229,6.3000713,245.03,244.84,47.14961704]
[1737631347694,19.28853304,245.04,244.84,47.14961704]
[1737631347894,20.28853304,245.02,244.84,23.37273304]
[1737631348118,19.28853304,244.98,244.84,19.28853304]
[1737631348316,23.776884,244.98,244.84,19.28853304]
[1737631348618,39.28853304,244.97,244.86,19.28853304]
[1737631349030,39.28853304,244.97,244.95,25.2464926]
[1737631349527,23.776884,244.96,244.95,25.2464926]
[1737631349695,24.776884,244.96,244.95,4.7572926]
[1737631349895,24.776884,244.96,244.95,9.26e-05]
[1737631350209,20.0,244.88,244.78,19.28853304]
[1737631350410,39.28853304,244.88,244.78,19.28853304]
[1737631350900,19.28853304,244.94,244.84,19.28853304]
[1737631351100,4.0824,244.95,244.84,19.28853304]
[1737631351300,19.28853304,245.0,244.9,19.28853304]
[1737631351710,19.28853304,244.98,244.88,19.28853304]
[1737631352818,23.776884,244.97,244.88,19.28853304]
[1737631353023,19.28853304,244.9,244.8,19.28853304]
[1737631353522,19.28853304,244.88,244.78,19.28853304]
[1737631353907,19.28853304,244.9,244.8,19.28853304]
[1737631354309,19.28853304,244.92,244.82,19.28853304]
[1737631354611,19.28853304,244.94,244.84,19.28853304]
[1737631354810,19.28853304,244.92,244.82,19.28853304]
[1737631355021,19.28853304,244.92,244.68,20.81553304]
[1737631355022,19.28853304,244.88,244.77,20.0]
[1737631355327,19.28853304,244.82,244.72,19.28853304]
[1737631356705,19.28853304,244.84,244.75,19.28853304]
[1737631357099,23.37213304,244.88,244.77,19.28853304]
[1737631357629,19.28853304,244.84,244.73,19.28853304]
[1737631357804,19.28853304,244.8,244.71,19.28853304]
[1737631359029,19.28853304,244.82,244.71,23.37483304]
[1737631359929,19.28853304,244.8,244.71,19.28853304]
[1737631361224,23.37353304,244.8,244.71,19.28853304]
[1737631361432,23.37353304,244.8,244.7,4.0865]
[1737631362929,23.37353304,244.8,244.71,19.28853304]
[1737631363113,23.37343304,244.8,244.71,23.37483304]
[1737631363515,19.28853304,244.82,244.71,23.37483304]
[1737631363731,19.28853304,244.84,244.75,19.28853304]
[1737631364028,19.28853304,244.86,244.75,19.28853304]
[1737631364221,19.28853304,244.88,244.77,19.28853304]
[1737631364426,19.28853304,244.86,244.75,331.28853304]
[1737631364624,19.28853304,244.84,244.75,331.28853304]
[1737631364821,19.28853304,244.84,244.73,19.28853304]
[1737631365022,19.28853304,244.86,244.76,4.0856]
[1737631366743,23.37253304,244.86,244.75,19.35153304]
[1737631366919,19.28853304,244.8,244.75,0.063]
[1737631368021,19.28853304,244.85,244.75,0.063]
[1737631368219,19.28853304,244.81,244.75,0.063]
[1737631368424,39.28853304,244.83,244.75,0.063]
[1737631368633,19.28853304,244.81,244.75,0.063]
[1737631368937,24.0845,244.83,244.75,0.063]
[1737631368938,19.28853304,244.79,244.75,0.063]
[1737631369442,19.28853304,244.81,244.75,0.063]
[1737631370739,4.0849,244.8,244.75,0.063]
[1737631370923,19.28853304,244.81,244.75,0.063]
[1737631371426,19.28853304,244.79,244.75,0.063]
[1737631371629,23.37333304,244.81,244.75,0.063]
[1737631371942,19.28853304,244.81,244.75,4.1487]
[1737631372144,19.28853304,244.85,244.75,4.1487]
[1737631372716,19.28853304,244.85,244.76,19.28853304]
[1737631373636,23.37263304,244.85,244.75,4.1487]
[1737631374643,23.37203304,244.89,244.78,19.28853304]
[1737631374829,23.37203304,244.89,244.76,19.28853304]
[1737631374830,19.28853304,244.87,244.76,19.28853304]
[1737631375036,19.28853304,244.85,244.76,19.28853304]
[1737631375830,19.28853304,244.85,244.75,4.1487]
[1737631376121,19.28853304,244.85,244.75,0.063]
[1737631376324,39.28853304,244.88,244.76,19.28853304]
[1737631376726,19.28853304,244.86,244.76,19.28853304]
[1737631376926,19.28853304,244.88,244.77,4.0854]
[1737631378051,19.28853304,244.84,244.75,0.063]
[1737631378848,4.0844,244.83,244.75,0.063]
[1737631379267,19.28853304,244.82,244.75,0.063]
[1737631379754,20.0,244.78,244.75,0.063]
[1737631379957,23.776884,244.76,244.75,0.063]
[1737631380752,19.28853304,244.77,244.75,0.063]
[1737631380954,23.37363304,244.79,244.75,0.063]
[1737631381162,43.37363304,244.79,244.75,0.063]
[1737631382352,23.37343304,244.81,244.75,0.063]
[1737631382753,19.28853304,244.77,244.75,0.063]
[1737631382953,4.0856,244.76,244.75,0.063]
[1737631383138,27.862484,244.76,244.75,0.0001]
[1737631383954,27.862484,244.76,244.57,1.6292]
[1737631383955,21.0,244.72,244.57,1.6292]
[1737631384158,19.28853304,244.63,244.57,1.6292]
[1737631384357,19.28853304,244.65,244.57,5.7179]
[1737631384662,19.28853304,244.67,244.58,19.28853304]
[1737631385341,19.28853304,244.69,244.6,19.28853304]
[1737631385571,19.28853304,244.71,244.6,19.28853304]
[1737631385740,19.28853304,244.73,244.62,19.28853304]
[1737631386053,19.28853304,244.73,244.65,20.0]
[1737631387177,19.28853304,244.75,244.66,4.0873]
[1737631388673,19.28853304,244.77,244.68,19.28853304]
[1737631388871,19.28853304,244.79,244.68,19.28853304]
[1737631389175,19.28853304,244.79,244.68,25.37963304]
[1737631390061,19.28853304,244.79,244.69,4.0868]
[1737631390248,19.28853304,244.79,244.7,19.28853304]
[1737631390650,19.28853304,244.77,244.69,4.0868]
[1737631391573,19.28853304,244.79,244.69,4.0868]
[1737631393072,19.28853304,244.79,244.71,4.0864]
[1737631393861,19.28853304,244.81,244.71,4.0864]
[1737631394069,19.28853304,244.83,244.72,19.28853304]
[1737631394453,19.28853304,244.83,244.73,23.776884]
[1737631394973,19.28853304,244.83,244.74,4.0859]
[1737631396574,19.28853304,244.83,244.74,23.37443304]
[1737631397554,19.28853304,244.85,244.75,23.776884]
[1737631397779,19.28853304,244.85,244.76,19.28853304]
[1737631398072,19.28853304,244.87,244.76,19.28853304]
[1737631398655,19.28853304,244.87,244.78,19.28853304]
[1737631399157,19.28853304,244.89,244.8,23.776884]
[1737631399354,19.28853304,244.89,244.8,43.06541704]
[1737631399772,12.01097423,244.9,244.81,12.01097423]
[1737631400554,12.01097423,244.88,244.79,16.09607423]
[1737631400963,0.03,244.85,244.79,16.09607423]
[1737631401776,0.03,244.85,244.79,4.0851]
[1737631402278,0.03,244.85,244.8,39.22211947]
[1737631402483,0.03,244.85,244.81,1.6472]
[1737631403875,0.03,244.85,244.82,4.0846]
[1737631405473,0.03,244.85,244.81,1.6472]
[1737631407177,19.25211947,244.85,244.76,24.83371947]
[1737631409175,23.33621947,244.85,244.76,5.6116]
[1737631409868,19.25211947,244.85,244.76,5.6116]
[1737631410781,0.03,244.85,244.78,19.22211947]
[1737631411284,0.03,244.85,244.79,4.0851]
[1737631412187,0.03,244.85,244.8,19.22211947]
[1737631413386,0.03,244.85,244.81,4.0848]
[1737631415983,0.03,244.85,244.79,10.2128]
[1737631416189,0.03,244.85,244.8,9.31]
[1737631416385,0.03,244.85,244.8,28.53211947]
[1737631417499,0.03,244.85,244.81,4.0848]
[1737631418498,0.03,244.85,244.81,14.2968]
[1737631421302,0.03,244.85,244.81,4.0848]
[1737631422896,0.03,244.85,244.77,22.2278123]
[1737631423077,12.0443123,244.85,244.76,1.5261]
[1737631423794,12.0443123,244.85,244.76,4.0856]
[1737631424095,0.03,244.85,244.79,12.0143123]
[1737631424677,0.03,244.85,244.81,12.0143123]
[1737631425292,0.03,244.85,244.82,4.0846]
[1737631425803,0.03,244.85,244.8,4.0849]
[1737631427202,0.03,244.85,244.81,12.0143123]
[1737631427512,12.0143123,244.82,244.76,4.0856]
[1737631427713,12.0143123,244.82,244.75,0.063]
[1737631427714,12.0143123,244.82,244.75,4.1487]
[1737631427899,12.0143123,244.82,244.76,9.32]
[1737631428511,12.0143123,244.84,244.75,0.063]
[1737631428892,12.0143123,244.84,244.75,4.1487]
[1737631429080,12.0143123,244.84,244.75,16.1630123]
[1737631429287,0.03,244.85,244.75,16.1630123]
[1737631430917,0.03,244.85,244.77,12.0143123]
[1737631431084,0.03,244.85,244.77,16.0997123]
[1737631431279,0.03,244.85,244.78,23.776884]
[1737631431805,0.03,244.85,244.77,16.0997123]
[1737631432399,0.03,244.85,244.79,12.0143123]
[1737631433181,0.03,244.85,244.8,4.0849]
[1737631436304,0.03,244.85,244.83,4.0844]
[1737631437308,0.03,244.85,244.8,4.0849]
[1737631439515,0.03,244.85,244.75,12.0773123]
[1737631439718,12.0143123,244.81,244.76,9.32]
[1737631439922,12.0143123,244.79,244.76,9.32]
[1737631440226,12.0143123,244.79,244.75,0.063]
[1737631440393,6.1748,244.8,244.75,0.063]
[1737631440897,0.03,244.85,244.77,12.0143123]
[1737631441091,0.03,244.85,244.79,12.0143123]
[1737631441801,0.03,244.85,244.81,12.0143123]
[1737631443120,0.03,244.85,244.82,4.0846]
[1737631443304,0.03,244.85,244.83,12.0143123]
[1737631444394,0.03,244.85,244.83,16.0987123]
[1737631447013,0.03,244.85,244.84,23.776884]
[1737631447219,0.03,244.85,244.83,16.0987123]
[1737631448808,0.03,244.85,244.84,23.776884]
[1737631449318,0.03,244.95,244.84,23.776884]
[1737631449495,0.03,244.95,244.89,12.0143123]
[1737631449819,7.68472053,244.92,244.85,4.0841]
[1737631450915,7.68472053,244.92,244.82,7.68472053]
[1737631451104,7.68472053,244.92,244.83,4.0844]
[1737631451300,7.68472053,244.92,244.83,27.861284]
[1737631451513,11.76742053,244.94,244.84,7.68472053]
[1737631451706,7.68472053,244.94,244.84,7.68472053]
[1737631451897,0.03,244.95,244.86,7.68472053]
[1737631452102,0.03,244.95,244.88,7.68472053]
[1737631452315,0.03,244.95,244.86,27.68472053]
[1737631452316,7.68472053,244.94,244.86,27.68472053]
[1737631452501,7.68472053,244.94,244.86,20.0]
[1737631452701,7.68472053,244.94,244.84,7.68472053]
[1737631453300,7.68472053,244.94,244.85,4.0841]
[1737631454525,7.68472053,244.94,244.86,31.46160453]
[1737631454712,0.03,244.95,244.88,7.68472053]
[1737631455030,7.68472053,244.94,244.86,7.68472053]
[1737631455215,7.68472053,244.94,244.84,7.68472053]
[1737631455403,0.03,244.95,244.86,7.68472053]
[1737631456303,0.03,244.95,244.89,23.776884]
[1737631457512,7.68472053,244.92,244.83,7.68472053]
[1737631457826,7.68472053,244.9,244.81,7.68472053]
[1737631458031,7.68472053,244.9,244.79,7.68472053]
[1737631458204,7.68472053,244.88,244.77,11.77012053]
[1737631458618,7.68472053,244.88,244.74,7.6278]
[1737631458619,7.68472053,244.84,244.75,4.1486]
[1737631458834,7.68472053,244.81,244.75,0.063]
[1737631459137,7.68472053,244.79,244.75,0.063]
[1737631459629,7.68472053,244.77,244.75,0.063]
[1737631459928,12.02720265,244.76,244.75,0.063]
[1737631460445,12.02720265,244.81,244.75,0.063]
[1737631460806,12.02720265,244.81,244.75,4.1487]
[1737631461133,12.02720265,244.83,244.75,16.17590265]
[1737631461625,12.02720265,244.85,244.81,0.063]
[1737631462216,18.48430265,244.89,244.81,0.063]
[1737631462729,12.02720265,244.85,244.81,0.063]
[1737631463907,12.02720265,244.87,244.81,0.063]
[1737631464119,18.48430265,244.89,244.81,4.1477]
[1737631464515,12.02720265,244.86,244.81,4.1477]
[1737631465035,12.02720265,244.88,244.81,4.1477]
[1737631465826,10.5406,244.89,244.81,0.063]
[1737631466008,12.02720265,244.84,244.81,0.063]
[1737631466539,6.2953,244.93,244.81,0.063]
[1737631466540,12.02720265,244.86,244.81,0.063]
[1737631466711,12.02720265,244.86,244.81,4.1477]
[1737631468215,12.02720265,244.84,244.81,0.063]
[1737631468421,12.02720265,244.82,244.81,0.063]
[1737631469716,12.02720265,244.84,244.81,0.063]
[1737631470321,12.02720265,244.82,244.81,0.063]
[1737631470640,30.1848053,244.82,244.81,0.063]
[1737631470836,18.15760265,244.82,244.81,0.063]
[1737631471333,12.02720265,244.82,244.81,0.063]
[1737631473326,12.02720265,244.84,244.81,0.063]
[1737631474635,6.1989,244.88,244.81,0.063]
[1737631474636,12.02720265,244.83,244.81,0.063]
[1737631476714,4.0846,244.82,244.81,0.063]
[1737631477643,12.02720265,244.83,244.81,0.063]
[1737631477815,16.11160265,244.83,244.81,0.063]
[1737631479112,12.02720265,244.83,244.81,0.063]
[1737631479814,7.6930636,244.82,244.81,0.063]
[1737631480826,7.6930636,244.84,244.81,0.063]
[1737631481630,0.03,244.85,244.81,0.063]
[1737631481831,0.03,244.85,244.81,4.1477]
[1737631482144,0.03,244.85,244.81,0.063]
[1737631482941,0.03,244.85,244.81,4.1477]
[1737631483633,0.03,244.85,244.81,0.063]
[1737631484244,12.01456495,244.84,244.81,0.063]
[1737631484451,12.01456495,244.82,244.81,0.063]
[1737631485441,12.01456495,244.84,244.81,0.063]
[1737631485849,0.03,244.85,244.81,0.063]
[1737631488050,0.03,244.85,244.81,4.1477]
[1737631489633,0.03,244.85,244.82,23.776884]
[1737631489953,0.03,244.85,244.82,35.79144895]
[1737631490326,0.03,244.85,244.84,35.79144895]
[1737631490539,0.03,244.85,244.82,12.01456495]
[1737631491139,0.03,244.85,244.83,23.776884]
[1737631491538,0.03,244.85,244.84,12.01456495]
[1737631491739,0.03,244.85,244.81,10.275]
[1737631491740,0.03,244.85,244.81,0.063]
[1737631497158,0.03,244.85,244.81,4.1477]
[1737631498561,0.03,244.85,244.82,23.776884]
[1737631498748,0.03,244.85,244.81,4.1477]
[1737631499844,0.03,244.85,244.82,35.79144895]
[1737631500162,0.03,244.85,244.82,23.776884]
[1737631500660,0.03,244.85,244.81,4.1477]
[1737631500964,0.03,244.85,244.82,23.776884]
[1737631501538,0.03,244.85,244.84,20.0]
[1737631501742,0.03,244.85,244.84,55.79144895]
[1737631502041,0.03,244.85,244.84,59.87564895]
[1737631502560,0.03,244.95,244.85,23.776884]
[1737631502788,0.03,244.95,244.84,46.30946495]
[1737631502789,0.03,244.95,244.88,23.776884]
[1737631503269,12.01456495,244.94,244.85,12.01456495]
[1737631503436,12.01456495,244.94,244.84,24.0842]
[1737631503641,12.01456495,244.94,244.85,23.776884]
[1737631504059,12.01456495,244.94,244.86,4.0839]
[1737631504543,12.01456495,244.92,244.86,4.0839]
[1737631504963,4.1124,244.95,244.82,4.0846]
[1737631504964,12.01456495,244.9,244.82,4.0846]
[1737631505259,12.01456495,244.88,244.81,0.063]
[1737631505450,12.01456495,244.86,244.81,0.063]
[1737631505862,12.01456495,244.84,244.81,0.063]
[1737631506665,12.01456495,244.86,244.81,0.063]
[1737631507750,11.51456495,244.86,244.81,0.063]
[1737631509672,12.01456495,244.82,244.81,0.063]
[1737631514984,16.09916495,244.82,244.81,0.063]
[1737631518068,12.01456495,244.82,244.81,0.063]
[1737631519383,16.09916495,244.82,244.81,0.063]
[1737631521278,12.01456495,244.82,244.81,0.063]
[1737631521658,12.01456495,244.84,244.81,0.063]
[1737631522282,12.01456495,244.86,244.81,4.1477]
[1737631522585,12.01456495,244.84,244.81,0.063]
[1737631523166,12.01456495,244.86,244.81,4.1477]
[1737631523658,0.03,244.86,244.81,4.1477]
[1737631523866,0.03,244.86,244.82,23.776884]
[1737631525367,0.03,244.86,244.81,4.1476]
[1737631527587,0.03,244.86,244.83,4.0844]
[1737631528288,0.03,244.86,244.82,1.5759]
[1737631529501,12.04456495,244.86,244.81,0.063]
[1737631529873,16.12846495,244.86,244.81,0.063]
[1737631530194,12.01456495,244.84,244.81,0.063]
[1737631530375,12.01456495,244.82,244.81,0.063]
[1737631531590,4.1139,244.86,244.81,0.063]
[1737631531591,12.01456495,244.84,244.81,0.063]
[1737631531906,12.04456495,244.86,244.81,0.063]
[1737631532088,12.01456495,244.82,244.81,0.063]
[1737631533675,16.09916495,244.82,244.81,0.063]
[1737631534983,12.01456495,244.82,244.81,0.063]
[1737631537508,12.01456495,244.84,244.81,0.063]
[1737631538199,12.04456495,244.86,244.81,4.1477]
[1737631539205,0.03,244.86,244.81,0.063]
[1737631539380,12.04456495,244.86,244.81,0.063]
[1737631539580,16.12856495,244.86,244.81,0.063]
[1737631539780,12.01456495,244.84,244.81,0.063]
[1737631539987,12.01456495,244.82,244.81,0.063]
[1737631542577,12.01456495,244.84,244.81,0.063]
[1737631544103,12.01456495,244.82,244.81,0.063]
[1737631544599,20.0,244.79,244.75,0.063]
[1737631544800,12.01456495,244.76,244.75,0.063]
[1737631549914,12.01456495,244.78,244.75,0.063]
[1737631552904,12.01456495,244.8,244.75,4.1487]
[1737631553106,12.01456495,244.82,244.75,4.1487]
[1737631554312,12.04456495,244.86,244.76,41.46074895]
[1737631554499,12.04456495,244.86,244.76,24.30366495]
[1737631554701,12.04456495,244.86,244.76,34.51766495]
[1737631555007,12.04456495,244.86,244.77,23.776884]
[1737631555382,0.03,244.86,244.78,12.01456495]
[1737631555795,0.03,244.86,244.81,23.776884]
[1737631555994,0.03,244.86,244.8,12.01456495]
[1737631556405,0.03,244.86,244.76,22.5031]
[1737631556406,0.03,244.86,244.78,12.01456495]
[1737631556614,12.01456495,244.82,244.76,5.6693]
[1737631556800,12.01456495,244.82,244.76,1.5838]
[1737631560015,12.01456495,244.84,244.76,5.6694]
[1737631560397,12.04456495,244.86,244.77,12.01456495]
[1737631560917,0.03,244.86,244.78,23.776884]
[1737631561412,0.03,244.86,244.79,12.01456495]
[1737631562312,0.03,244.86,244.8,4.0849]
[1737631562520,12.04456495,244.86,244.76,5.6694]
[1737631562835,12.01456495,244.84,244.76,1.5838]
[1737631562999,12.01456495,244.82,244.76,1.5838]
[1737631565909,18.43123243,245.03,244.88,23.776884]
[1737631566103,18.43123243,245.03,244.8,25.0291299]
[1737631566104,6.41666748,245.03,244.94,20.91286495]
[1737631566301,6.41666748,245.03,244.99,12.01456495]
[1737631566499,18.43123243,245.03,244.94,7.8984]
[1737631566708,12.01456495,244.99,244.94,1.5785]
[1737631566936,12.01456495,244.97,244.88,6.3199]
[1737631567143,12.01456495,244.97,244.89,9.31]
[1737631567438,12.01456495,245.01,244.92,20.0]
[1737631567611,18.43123243,245.03,244.94,20.0]
[1737631568113,12.01456495,245.03,244.94,20.0]
[1737631568336,12.01456495,245.03,244.95,3.38519902]
[1737631568539,12.01456495,245.03,244.95,5.66466255]
[1737631568844,12.01456495,245.03,244.95,317.66466255]
[1737631569008,0.03,245.04,244.96,23.776884]
[1737631569213,0.03,245.04,245.0,20.0]
[1737631569623,0.03,245.04,245.01,12.01456495]
[1737631570025,0.03,245.04,245.03,24.0811]
[1737631570358,0.03,245.04,245.03,59.87254895]
[1737631571636,0.03,245.04,245.03,63.25774797]
[1737631571824,0.03,245.04,245.03,42.56240706]
[1737631572141,0.03,245.04,245.03,44.82758093]
[1737631572339,0.03,245.1,245.04,27.857784]
[1737631572915,0.03,245.1,245.05,19.17720804]
[1737631573616,0.03,245.1,245.05,20.47910199]
[1737631573834,0.03,245.1,245.06,4.0806]
[1737631574330,0.03,245.1,245.05,20.47910199]
[1737631574539,0.03,245.1,245.05,1.30189395]
[1737631575027,0.03,245.1,245.05,23.25790804]
[1737631575625,0.03,245.1,245.07,19.17720804]
[1737631575936,0.03,245.1,245.08,4.0803]
[1737631577237,0.03,245.1,245.09,23.776884]
[1737631577422,0.03,245.1,245.09,42.95409204]
[1737631577928,0.0001,245.1,245.09,42.95409204]
[1737631578309,0.0001,245.11,245.09,42.95409204]
[1737631578511,0.0001,245.11,245.1,29.370984]
[1737631579317,0.0001,245.11,245.1,341.370984]
[1737631580018,0.0001,245.11,245.1,1.28232118]
[1737631580430,19.17720804,245.12,245.1,1.28232118]
[1737631580819,19.17720804,245.16,245.1,1.28232118]
[1737631581228,19.17720804,245.18,245.1,5.36222118]
[1737631581426,19.17720804,245.2,245.11,42.95409204]
[1737631581749,19.17720804,245.22,245.11,42.95409204]
[1737631582634,19.17720804,245.22,245.09,0.063]
[1737631582635,19.17720804,245.2,245.09,0.063]
[1737631582829,19.17720804,245.18,245.09,19.24020804]
[1737631583028,19.17720804,245.18,245.1,23.776884]
[1737631583238,19.17720804,245.2,245.1,23.776884]
[1737631584050,19.17720804,245.2,245.1,27.856684]
[1737631584217,19.17720804,245.2,245.11,19.17720804]
[1737631584734,19.17720804,245.21,245.11,19.17720804]
[1737631585371,19.17720804,245.21,245.13,23.776884]
[1737631585848,19.17720804,245.19,245.1,4.0798]
[1737631586051,19.17720804,245.15,245.09,0.063]
[1737631586222,19.17720804,245.13,245.09,0.063]
[1737631586730,14.2734,245.21,245.09,0.063]
[1737631586731,19.17720804,245.15,245.09,0.063]
[1737631587345,19.17720804,245.13,245.09,0.063]
[1737631588439,19.17720804,245.11,245.09,0.063]
[1737631588829,4.0791,245.15,245.09,0.063]
[1737631588830,19.17720804,245.13,245.09,0.063]
[1737631590024,23.25660804,245.13,245.09,0.063]
[1737631590826,19.17720804,245.13,245.09,0.063]
[1737631591824,11.98857304,245.13,245.09,0.063]
[1737631592146,11.98857304,245.13,244.85,51.66876961]
[1737631592147,2.0,244.86,244.85,51.66876961]
[1737631592357,2.0,244.86,244.76,63.70054538]
[1737631592358,0.88250427,244.84,244.76,63.70054538]
[1737631592537,23.776884,244.76,244.64,0.11749573]
[1737631592866,11.98857304,244.7,244.67,0.11749573]
[1737631593045,11.98857304,244.7,244.66,0.9999]
[1737631593046,11.98857304,244.7,244.66,1.11739573]
[1737631593421,11.98857304,244.67,244.59,0.11749573]
[1737631593621,19.26131994,244.63,244.6,0.9999]
[1737631594242,19.26131994,244.61,244.6,0.9999]
[1737631594745,19.26131994,244.61,244.6,312.9999]
[1737631595362,8.34792106,244.62,244.61,0.11749573]
[1737631595550,8.34792106,244.62,244.6,312.0]
[1737631595755,19.26131994,244.61,244.6,312.0]
[1737631596142,19.26131994,244.61,244.56,0.18049573]
[1737631596451,19.26131994,244.58,244.57,0.9999]
[1737631597147,19.26131994,244.58,244.51,7.04295406]
[1737631597350,19.26131994,244.58,244.5,0.063]
[1737631597530,19.26131994,244.54,244.5,0.063]
[1737631598028,19.26131994,244.54,244.45,23.776884]
[1737631598545,8.34792106,244.53,244.45,23.776884]
[1737631598752,8.34792106,244.53,244.44,6.6048769]
[1737631598954,8.34792106,244.53,244.44,3.77683428]
[1737631599157,20.98946421,244.52,244.45,9.49e-06]
[1737631599457,21.26131556,244.48,244.39,19.26131994]
[1737631599757,1.99999562,244.44,244.37,0.063]
[1737631599938,19.26131994,244.45,244.37,20.063]
[1737631600138,0.99999562,244.48,244.4,19.26131994]
[1737631600139,1.0,244.48,244.4,19.26131994]
[1737631600371,1.0,244.5,244.43,20.0]
[1737631601254,1.0,244.5,244.44,19.26131994]
[1737631602048,1.0,244.5,244.45,4.0908]
[1737631602224,11.13056142,244.52,244.46,19.26131994]
[1737631602422,11.13056142,244.52,244.51,19.26131994]
[1737631603937,11.13056142,244.52,244.51,23.35111994]
[1737631604341,34.90744542,244.52,244.37,0.063]
[1737631604560,1.0,244.39,244.37,0.063]
[1737631604737,44.03819956,244.38,244.37,0.063]
[1737631604937,19.26131994,244.38,244.37,0.063]
[1737631605541,1.0,244.39,244.37,0.063]
[1737631605874,19.26131994,244.41,244.37,0.063]
[1737631606042,19.26131994,244.39,244.37,0.063]
[1737631606245,23.776884,244.38,244.37,0.063]
[1737631606760,19.26131994,244.39,244.37,0.063]
[1737631607563,19.26131994,244.41,244.37,4.155]
[1737631607765,4.52031798,244.51,244.37,4.155]
[1737631607766,6.49843597,244.43,244.37,4.155]
[1737631608062,19.26131994,244.45,244.37,4.155]
[1737631608255,19.26131994,244.43,244.37,4.155]
[1737631608558,19.26131994,244.45,244.37,24.155]
[1737631609151,19.26131994,244.43,244.37,24.155]
[1737631609342,19.26131994,244.41,244.37,24.155]
[1737631609545,19.26131994,244.39,244.37,4.155]
[1737631610052,19.26131994,244.39,244.37,0.063]
[1737631611247,19.26131994,244.39,244.37,4.1551]
[1737631611758,19.26131994,244.41,244.37,4.1551]
[1737631612654,5.34432752,244.41,244.37,4.1551]
[1737631614565,19.26131994,244.43,244.37,14.3854]
[1737631614765,19.26131994,244.45,244.37,14.3854]
[1737631615866,19.26131994,244.58,244.47,20.0]
[1737631616541,19.26131994,244.58,244.48,4.0903]
[1737631616743,19.26131994,244.58,244.48,14.316]
[1737631618461,43.776884,244.63,244.48,4.0903]
[1737631618763,19.26131994,244.53,244.43,19.26131994]
[1737631618970,19.26131994,244.51,244.41,19.26131994]
[1737631619267,19.26131994,244.51,244.44,20.0]
[1737631619469,19.26131994,244.53,244.44,20.0]
[1737631620571,19.26131994,244.53,244.46,20.0]
[1737631621073,19.26131994,244.51,244.46,20.0]
[1737631621275,19.26131994,244.47,244.4,10.2289]
[1737631621575,19.26131994,244.45,244.41,4.0914]
[1737631622076,19.26131994,244.43,244.37,4.155]
[1737631622648,19.26131994,244.39,244.37,0.063]
[1737631624048,7.4938,244.49,244.37,0.063]
[1737631624049,19.26131994,244.53,244.38,19.26131994]
[1737631624255,81.5,244.65,244.44,19.26131994]
[1737631624256,19.26131994,244.55,244.44,19.26131994]
[1737631624465,19.26131994,244.57,244.46,19.26131994]
[1737631625652,31.31591238,244.57,244.46,31.31591238]
[1737631626060,31.31591238,244.57,244.47,4.0904]
[1737631626450,31.31591238,244.55,244.47,4.0904]
[1737631627378,31.31591238,244.57,244.47,4.0904]
[1737631627575,23.776884,244.61,244.49,31.31591238]
[1737631627576,31.31591238,244.61,244.49,31.31591238]
[1737631627763,31.31591238,244.61,244.51,31.31591238]
[1737631628076,23.776884,244.6,244.51,31.31591238]
[1737631628582,31.31591238,244.61,244.52,4.0896]